Cogmind - Beta 11 X2 @@@ ROGUE MODE // 2021.02.19 @ 15:24:20 Player: Boris Result: Destroyed by Enhanced Grunt with Neutron Cannon Performance ------------- Evolutions (3) 1500 Regions Visited (11) 2200 Robots Destroyed (51) 255 Value Destroyed (1101) 1101 Prototype IDs (241) 4820 Alien Tech Used (0) 0 Bonus (3450) 3450 TOTAL SCORE: 13326 Bonus ------- High Alert Combat Kills 50 Follower Combat Kills 60 Aligned with FarCom 300 Met Data Miner 300 Used Data Conduit 3000 Friendly Fire -260 Cogmind --------- Core Integrity 0/700 Matter 295/300 Energy 99/100 System Corruption 2% Temperature Cool (6) Movement Core (50) Location -7/Data Miner Parts ------- > --- POWER (1) -------- (None) > --- PROPULSION (5) --- (None) > --- UTILITY (5) ------ Advanced Visual Processing Unit Improved Terrain Scan Processor > --- WEAPON (2) ------- (None) > --- INVENTORY (5) ---- Cooled Ion Engine Superbattery (1486) Launcher Guidance Computer Flak Gun Flak Gun Peak State ------------ > --- POWER ------------ Ion Engine > --- PROPULSION ------- Hover Unit Airjet Aerolev Unit Combat Airjet Combat Airjet > --- UTILITY ---------- Large Storage Unit Advanced Visual Processing Unit Advanced Terrain Scan Processor Improved Medium Armor Plating Improved Medium Armor Plating > --- WEAPON ----------- Gauss Rifle Flak Cannon > --- INVENTORY -------- Cooled Ion Engine Wheel Improved Heat Sink Superbattery Medium Matter Pod Improved Terrain Scanner Launcher Guidance Computer Maneuvering Thrusters Improved Medium Armor Plating Particle Cannon Gauss Rifle Mini Grenade Launcher Mini Grenade Launcher Plasma Cutter Mining Claw [Rating: 46] Favorites ----------- Power Ion Engine Engine Ion Engine Propulsion Combat Airjet Treads Light Treads Wheel Wheel Hover Unit Combat Airjet Utility Large Storage Unit Device Improved Terrain Scanner Storage Large Storage Unit Processor Advanced Terrain Scan Processor Protection Improved Medium Armor Plating Weapon Mini Grenade Launcher Energy Gun EM Pulse Gun Energy Cannon Improved EM Pulse Cannon Ballistic Gun Assault Rifle Ballistic Cannon Flak Cannon Launcher Mini Grenade Launcher Special Weapon Plasma Cutter Slashing Weapon Mining Claw Special Melee Weapon Datajack Build | -11 -10 -10 -9 -9 -9 -8 -8 -7 -7 -7 -7 ------- Run | Scr Mat Min Mat Min Exi Min Mat Fac Low Low Dat Slots Evolved 6 | . . . 2 . . . 2 2 . . . Power . | . . . . . . . . . . . . Propulsion 3 | . . . 2 . . . . 1 . . . Utility 3 | . . . . . . . 2 1 . . . Weapon . | . . . . . . . . . . . . Parts Attached 63 | 4 5 3 8 8 1 1 6 20 1 3 3 Power 4 | 1 . . 2 1 . . . . . . . Engine 4 | 1 . . 2 1 . . . . . . . Core . | . . . . . . . . . . . . Reactor . | . . . . . . . . . . . . Propulsion 14 | 2 . . 4 3 . . 3 2 . . . Treads 1 | 1 . . . . . . . . . . . Leg . | . . . . . . . . . . . . Wheel 2 | 1 . . . 1 . . . . . . . Hover 11 | . . . 4 2 . . 3 2 . . . Flight . | . . . . . . . . . . . . Utility 15 | 1 1 . . 1 . . 3 5 1 1 2 Device 7 | . . . . 1 . . 2 1 1 . 2 Storage 2 | 1 1 . . . . . . . . . . Processor 4 | . . . . . . . 1 2 . 1 . Hackware . | . . . . . . . . . . . . Protection 2 | . . . . . . . . 2 . . . Artifact . | . . . . . . . . . . . . Weapon 30 | . 4 3 2 3 1 1 . 13 . 2 1 Energy Gun 1 | . . 1 . . . . . . . . . Energy Cannon 1 | . . . . . . . . . . 1 . Ballistic Gun 6 | . 2 . . . . . . 4 . . . Ballistic Cannon 2 | . . . . . . . . 2 . . . Launcher 10 | . 1 2 . 2 . . . 4 . 1 . Special Weapon 2 | . . . . . . . . 2 . . . Impact Weapon . | . . . . . . . . . . . . Slashing Weapon 7 | . 1 . 2 1 . 1 . 1 . . 1 Piercing Weapon . | . . . . . . . . . . . . Special Melee Weapon 1 | . . . . . 1 . . . . . . Unidentified Prototypes 3 | . . . 2 . . . 1 . . . . Parts Lost 16 | . . . 2 3 . 1 1 3 . 1 5 Power 1 | . . . 1 . . . . . . . . Propulsion 9 | . . . . 3 . 1 . 2 . 1 2 Utility 5 | . . . . . . . 1 1 . . 3 Weapon 1 | . . . 1 . . . . . . . . Highest Loss Streak 5 | . . . 1 3 . 1 1 2 . 1 5 Average Slot Usage (%) 84 | . 99 100 86 74 88 77 92 94 76 57 51 Engine 8 | . 14 14 10 4 11 11 9 7 7 1 . Treads 2 | . 14 14 . . . . . . . . . Wheel 2 | . 14 14 . . . . . . . . . Hover 22 | . . . 44 30 33 22 29 35 23 16 14 Device 8 | . . . . 8 11 11 17 8 15 7 1 Storage 12 | . 27 28 11 11 11 11 9 7 7 7 7 Processor 8 | . . . . . . . 9 12 15 22 23 Protection 1 | . . . . . . . . 6 . . . Ballistic Gun 4 | . 15 14 11 2 . . . 1 . . . Launcher 6 | . 7 8 1 6 11 11 9 6 7 1 . Slashing Weapon 4 | . 4 . 8 11 5 4 9 2 . . 4 Naked Turns . | . . . . . . . . . . . . Heaviest Build 49 | 8 33 33 28 30 28 28 30 49 28 28 22 Greatest Support 46 | 20 10 10 28 31 31 30 46 46 29 29 21 Greatest Overweight (x) 3 | . 3 3 1 3 . . . 1 . . 1 Average Overweight (x) . | . 2 3 . . . . . . . . . Largest Inventory Capacity 15 | 8 15 15 15 15 15 15 15 15 15 15 15 Average Capacity 14 | 6 14 15 15 15 15 15 15 15 15 15 14 Most Carried 15 | 5 12 15 15 15 15 15 15 15 14 15 15 Average Carried 14 | 3 8 14 13 14 14 14 14 14 14 14 14 Final Capacity 15 | 8 15 15 15 15 15 15 15 15 15 15 5 Final Carried 15 | 5 12 15 15 15 15 15 14 15 14 15 5 Class Distribution -------------------- 51% | Mutant 35% | Scavenger-Scout 7% | Scout 5% | Scavenger-Mutant Dominant Class ---------------- Mutant | -10/Materials Mutant | -10/Mines Mutant | -9/Materials Mutant | -9/Mines Mutant | -9/Exiles Mutant | -8/Mines Scavenger-Scout | -8/Materials Scavenger-Scout | -7/Factory Scavenger-Scout | -7/Lower Caves Scout | -7/Lower Caves Mutant | -7/Data Miner Resources | -11 -10 -10 -9 -9 -9 -8 -8 -7 -7 -7 -7 ----------- Run | Scr Mat Min Mat Min Exi Min Mat Fac Low Low Dat Matter Collected 1278 | 240 115 144 91 110 . 15 70 393 55 45 . Remotely . | . . . . . . . . . . . . Salvage Created 1157 | . 146 131 25 169 . 21 65 540 . 60 . Parts 84 | . 17 14 1 9 . 5 10 27 . 1 . Haulers Intercepted 1 | . . . . . . . . 1 . . . Recyclers Shooed 1 | . . . . 1 . . . . . . . Parts Field Recycled . | . . . . . . . . . . . . Retrieved Matter . | . . . . . . . . . . . . Parts Self-Destructed . | . . . . . . . . . . . . Prevented 1 | . . . . . . . . . . 1 . Kills | -11 -10 -10 -9 -9 -9 -8 -8 -7 -7 -7 -7 ------- Run | Scr Mat Min Mat Min Exi Min Mat Fac Low Low Dat Combat Hostiles Destroyed 34 | . 8 8 . . . 3 4 10 . 1 . Guns 1 | . . . . . . . . 1 . . . Cannons 2 | . . . . . . . . 2 . . . AOE 29 | . 8 7 . . . 3 4 7 . . . Classes Destroyed 11 | . 5 . 1 1 . . . 3 . 1 . Worker 3 | . 1 . . 1 . . 1 . . . . Builder 3 | . . . . 1 . . 1 1 . . . Hauler 1 | . . . . . . . . 1 . . . Recycler 5 | . 1 . . 2 . . . 2 . . . Operator 3 | . 1 . . . . . 1 1 . . . Watcher 1 | . . . 1 . . . . . . . . Swarmer 22 | . 6 6 . . . 3 4 3 . . . Grunt 8 | . 2 2 . . . . . 4 . . . Sentry 1 | . . . . . . . . 1 . . . Hunter 1 | . . . . . . . . . . 1 . Programmer 2 | . . . . . . . . 2 . . . Thug 1 | . . 1 . . . . . . . . . Best Kill Streak 9 | . 9 3 1 3 . 3 5 5 . 1 . Combat Bots Only 8 | . 8 3 . . . 3 4 4 . 1 . Max Kills in Single Turn 3 | . 3 3 1 2 . 3 2 3 . 1 . Gunslinging . | . . . . . . . . . . . . Exploded 3 | . 3 3 . . . 3 2 2 . . . Melee . | . . . . . . . . . . . . Uniques/NPCs Destroyed . | . . . . . . . . . . . . Combat | -11 -10 -10 -9 -9 -9 -8 -8 -7 -7 -7 -7 -------- Run | Scr Mat Min Mat Min Exi Min Mat Fac Low Low Dat Damage Taken 2505 | . 84 235 148 134 . 24 372 434 . 53 1021 Core 1008 | . 36 35 43 50 . . 112 59 . . 673 Absorbed by Shields . | . . . . . . . . . . . . Core Remaining (%) 81 | 100 . 71 . . . 76 79 . . . . Volleys Fired 71 | . 4 21 . 2 . 1 2 35 . 6 . Largest 2 | . 1 1 . 1 . 1 1 2 . 1 . Hottest 72 | . 30 40 . 30 . 30 30 72 . 69 . Shots Fired 86 | . 4 21 . 2 . 1 2 50 . 6 . Gun 37 | . . 15 . . . . . 22 . . . Cannon 15 | . . . . . . . . 11 . 4 . Launcher 25 | . 4 6 . 2 . 1 2 8 . 2 . Special 9 | . . . . . . . . 9 . . . Kinetic 33 | . . . . . . . . 33 . . . Thermal 9 | . . . . . . . . 9 . . . Explosive 25 | . 4 6 . 2 . 1 2 8 . 2 . Electromagnetic 19 | . . 15 . . . . . . . 4 . Robot Hit Streak 7 | . 2 5 . 3 . . 1 7 . 5 . Robot Miss Streak 6 | . 2 2 . . . 1 . 6 . . . Penetration Max 1 | . . . . . . . . 1 . . . Secondary Targets . | . . . . . . . . . . . . Shots Hit Robots 70 | . 4 13 2 7 3 . 3 33 . 4 1 Core Hits 76 | . 16 12 1 5 . 3 6 33 . . . Critical Hits 1 | . . . . . . . . . . 1 . Critical Kills . | . . . . . . . . . . . . Critical Parts Destroyed 1 | . . . . . . . . . . 1 . Melee Attacks 75 | . 3 . 10 5 3 . 20 13 . . 21 Impact . | . . . . . . . . . . . . Slashing 72 | . 3 . 10 5 . . 20 13 . . 21 Piercing . | . . . . . . . . . . . . Sneak Attacks 11 | . 2 . 1 2 3 . 1 1 . . 1 Combat Hostiles . | . . . . . . . . . . . . Follow-up Attacks . | . . . . . . . . . . . . Damage Inflicted 3978 | . 654 657 95 471 . 162 560 1179 . 124 76 Guns 382 | . . 134 . . . . . 248 . . . Cannons 269 | . . . . . . . . 145 . 124 . Explosions 2411 | . 488 523 . 140 . 162 456 642 . . . Melee 845 | . 166 . 95 331 . . 104 73 . . 76 Ramming 7 | . . . . . . . . 7 . . . Kinetic 393 | . . . . . . . . 393 . . . Thermal 95 | . . 31 . . . . . 64 . . . Explosive 2337 | . 488 492 . 140 . 162 413 642 . . . Electromagnetic 301 | . . 134 . . . . 43 . . 124 . Impact . | . . . . . . . . . . . . Slashing 845 | . 166 . 95 331 . . 104 73 . . 76 Piercing . | . . . . . . . . . . . . Highest Corruption 2 | . . . . . . . 2 2 2 2 2 Average Corruption 1 | . . . . . . . 1 1 2 2 2 Corruption Purged . | . . . . . . . . . . . . Effects 19 | . . . . . . . 1 2 7 7 2 Message Errors 9 | . . . . . . . . 1 2 5 1 Heat Flow Errors 1 | . . . . . . . . . 1 . . Energy Discharges 4 | . . . . . . . 1 . 1 1 1 Data Loss (minor) 5 | . . . . . . . . 1 3 1 . Overload Shots . | . . . . . . . . . . . . Overflow Damage 229 | . . . . 126 . 3 94 6 . . . Projectiles . | . . . . . . . . . . . . Explosions 103 | . . . . . . 3 94 6 . . . Melee 126 | . . . . 126 . . . . . . . Knockbacks 7 | . . . . . . . . 7 . . . Impact . | . . . . . . . . . . . . Kinetic 7 | . . . . . . . . 7 . . . Secondary . | . . . . . . . . . . . . Self-Inflicted Damage 232 | . . 26 . 2 . 25 93 86 . . . Shots 7 | . . 1 . 1 . 1 3 1 . . . Rammed 1 | . . . . . . . . 1 . . . Targets Rammed 1 | . . . . . . . . 1 . . . Kicked . | . . . . . . . . . . . . Crushed . | . . . . . . . . . . . . Highest Temperature 254 | . 5 63 . . . . 6 20 254 48 . Average Temperature 34 | . 4 33 . . . . 6 8 133 26 . Received Heat Transfer 471 | . 33 87 78 . . . 108 33 . . 132 Siege Activations . | . . . . . . . . . . . . Robots Corrupted 2 | . . 1 . . . . . . . 1 . Combat Hostiles 2 | . . 1 . . . . . . . 1 . Parts Fried 2 | . . . . . . . . . . 2 . Impact Corruptions . | . . . . . . . . . . . . Robots Melted . | . . . . . . . . . . . . Combat Hostiles . | . . . . . . . . . . . . Parts Melted . | . . . . . . . . . . . . Heat Transferred 272 | . . 50 . . . . . 222 . . . Parts Sabotaged . | . . . . . . . . . . . . Parts Stolen . | . . . . . . . . . . . . Parts Stripped . | . . . . . . . . . . . . Power Chain Reactions 1 | . . 1 . . . . . . . . . Missiles Intercepted . | . . . . . . . . . . . . Alert | -11 -10 -10 -9 -9 -9 -8 -8 -7 -7 -7 -7 ------- Run | Scr Mat Min Mat Min Exi Min Mat Fac Low Low Dat Peak Influence 516 | . 263 422 194 71 . 70 472 516 . . . Initial 214 | . . 102 115 71 . . 27 214 . . . Average 194 | . 157 290 141 59 . 70 122 333 . . . Maximum Alert Level 2 | . 1 2 . . . . 2 2 . . . Low Security (%) 51 | 100 36 21 100 100 . 100 80 . . . . Level 1 34 | . 63 50 . . . . 15 66 . . . Level 2 13 | . . 27 . . . . 4 33 . . . Level 3 . | . . . . . . . . . . . . Level 4 . | . . . . . . . . . . . . Level 5 . | . . . . . . . . . . . . High Security . | . . . . . . . . . . . . Max Security . | . . . . . . . . . . . . Squads Dispatched 7 | . 1 . . . . . 2 4 . . . Investigation 1 | . . . . . . . 1 . . . . Extermination 2 | . . . . . . . . 2 . . . Reinforcement 4 | . 1 . . . . . 1 2 . . . Assault . | . . . . . . . . . . . . Garrison . | . . . . . . . . . . . . Intercept . | . . . . . . . . . . . . Construction Impeded 1 | . . . . . . . . 1 . . . Haulers Reinforced . | . . . . . . . . . . . . Stealth | -11 -10 -10 -9 -9 -9 -8 -8 -7 -7 -7 -7 --------- Run | Scr Mat Min Mat Min Exi Min Mat Fac Low Low Dat Distress Signals 3 | . 1 . 1 . . . 1 . . . . Communications Jammed . | . . . . . . . . . . . . Distress Signals . | . . . . . . . . . . . . Times Spotted 88 | . 13 9 6 11 . . 25 18 . 2 4 Peak Tracking Total 18 | . 10 3 7 18 . . 10 4 . 1 4 Tactical Retreats 10 | . . . 1 . . . 5 3 . 1 . Traps | -11 -10 -10 -9 -9 -9 -8 -8 -7 -7 -7 -7 ------- Run | Scr Mat Min Mat Min Exi Min Mat Fac Low Low Dat Traps Triggered 3 | . . . . . . . 1 2 . . . Indirectly . | . . . . . . . . . . . . Trap Hack Attempts . | . . . . . . . . . . . . Triggered . | . . . . . . . . . . . . Disarmed . | . . . . . . . . . . . . Reprogrammed . | . . . . . . . . . . . . Reused . | . . . . . . . . . . . . Traps Extracted . | . . . . . . . . . . . . Installed . | . . . . . . . . . . . . Triggered . | . . . . . . . . . . . . Machines | -11 -10 -10 -9 -9 -9 -8 -8 -7 -7 -7 -7 ---------- Run | Scr Mat Min Mat Min Exi Min Mat Fac Low Low Dat Machines Disabled 15 | . 1 9 . . . . 2 3 . . . Max in Single Turn 4 | . 1 4 . . . . 2 2 . . . Machines Sabotaged . | . . . . . . . . . . . . Garrisons Compromised . | . . . . . . . . . . . . Overloaded Fab Kills . | . . . . . . . . . . . . Fab Network Shutdowns . | . . . . . . . . . . . . Hacking | -11 -10 -10 -9 -9 -9 -8 -8 -7 -7 -7 -7 --------- Run | Scr Mat Min Mat Min Exi Min Mat Fac Low Low Dat Machines Accessed 25 | . 3 . 4 . 2 . 7 5 . . 4 Terminals 17 | . 3 . 4 . . . 7 3 . . . Fabricators 1 | . . . . . . . . 1 . . . Repair Stations . | . . . . . . . . . . . . Recycling Units . | . . . . . . . . . . . . Scanalyzers 1 | . . . . . . . . 1 . . . Garrison Access . | . . . . . . . . . . . . Total Hacks 85 | . 6 . 16 . 2 . 26 10 . . 25 Successful 58 | . 2 . 9 . 2 . 12 8 . . 25 Failed 27 | . 4 . 7 . . . 14 2 . . . Catastrophic 3 | . 1 . . . . . 2 . . . . Database Lockouts . | . . . . . . . . . . . . Manual 46 | . 4 . 14 . 1 . 23 4 . . . Terminals 54 | . 6 . 16 . . . 26 6 . . . Fabricators 2 | . . . . . . . . 2 . . . Repair Stations . | . . . . . . . . . . . . Recycling Units . | . . . . . . . . . . . . Scanalyzers 2 | . . . . . . . . 2 . . . Garrison Access . | . . . . . . . . . . . . Terminal Hacks 43 | . 1 . 5 . 2 . 8 2 . . 25 Record 12 | . . . . . 1 . . . . . 11 Part Schematic 6 | . . . . . . . . . . . 6 Robot Schematic 9 | . . . . . . . . 1 . . 8 Robot Analysis 1 | . . . 1 . . . . . . . . Prototype ID Bank 4 | . . . 1 . . . 3 . . . . Branch Access Points 6 | . 1 . 2 . . . 2 1 . . . Terminal Index 1 | . . . . . . . 1 . . . . Hauler Manifests 2 | . . . 1 . . . 1 . . . . Registered Prototypes 1 | . . . . . . . 1 . . . . EX-Prototype ID Bank 1 | . . . . . 1 . . . . . . Fabricator Hacks 2 | . . . . . . . . 2 . . . Load Schematic 1 | . . . . . . . . 1 . . . Build 1 | . . . . . . . . 1 . . . Repair Station Hacks . | . . . . . . . . . . . . Recycling Unit Hacks . | . . . . . . . . . . . . Scanalyzer 1 | . . . . . . . . 1 . . . Insert Component 1 | . . . . . . . . 1 . . . Garrison Access Hacks . | . . . . . . . . . . . . Unauthorized Hacks 12 | . 1 . 4 . . . 4 3 . . . Terminals 12 | . 1 . 4 . . . 4 3 . . . Track 1 | . . . . . . . 1 . . . . Botnet 7 | . . . 3 . . . 2 2 . . . Operators 4 | . 1 . 1 . . . 1 1 . . . Fabricators . | . . . . . . . . . . . . Repair Stations . | . . . . . . . . . . . . Recycling Units . | . . . . . . . . . . . . Scanalyzers . | . . . . . . . . . . . . Garrison Access . | . . . . . . . . . . . . Data Cores Recovered 1 | . . . . . . . 1 . . . . Used 1 | . . . . . . . 1 . . . . Hacking Detections 18 | . 3 . 4 . . . 7 4 . . . Full Trace Events 2 | . 1 . . . . . 1 . . . . Feedback Events 1 | . . . . . . . 1 . . . . Corruption 1 | . . . . . . . 1 . . . . Feedback Blocked . | . . . . . . . . . . . . Robot Schematics Acquired 9 | . . . . . . . . 1 . . 8 Robots Built 1 | . . . . . . . . 1 . . . Matter 219 | . . . . . . . . 219 . . . Time 116 | . . . . . . . . 116 . . . Total Robot Build Rating 3 | . . . . . . . . 3 . . . Part Schematics Acquired 6 | . . . . . . . . . . . 6 Parts Built . | . . . . . . . . . . . . Matter . | . . . . . . . . . . . . Time . | . . . . . . . . . . . . Total Part Build Rating . | . . . . . . . . . . . . Parts Repaired . | . . . . . . . . . . . . Time . | . . . . . . . . . . . . Parts Recycled . | . . . . . . . . . . . . Recycled Matter . | . . . . . . . . . . . . Retrieved Matter . | . . . . . . . . . . . . Retrieved Components . | . . . . . . . . . . . . Parts Scanalyzed 1 | . . . . . . . . 1 . . . Part Schematics Acquired . | . . . . . . . . . . . . Parts Damaged . | . . . . . . . . . . . . Bothacking | -11 -10 -10 -9 -9 -9 -8 -8 -7 -7 -7 -7 ------------ Run | Scr Mat Min Mat Min Exi Min Mat Fac Low Low Dat Used RIF Installer . | . . . . . . . . . . . . Robots Hacked 3 | . . . . . 3 . . . . . . Non-combat 3 | . . . . . 3 . . . . . . Combat . | . . . . . . . . . . . . Robot Hacks Applied 3 | . . . . . 3 . . . . . . parse_system 3 | . . . . . 3 . . . . . . Relay Couplers Released . | . . . . . . . . . . . . Robots Rewired . | . . . . . . . . . . . . Allies Hacked . | . . . . . . . . . . . . Hacks Repelled . | . . . . . . . . . . . . Allies | -11 -10 -10 -9 -9 -9 -8 -8 -7 -7 -7 -7 -------- Run | Scr Mat Min Mat Min Exi Min Mat Fac Low Low Dat Total Allies 3 | . . 2 . . . . . 1 . . . Largest Group 2 | . . 2 1 . . . . 1 . . . Highest-Rated Group 44 | . . 44 13 . . . . 26 . . . Highest-Rated Ally 31 | . . 31 13 . . . . 26 . . . Total Orders 1 | . . . . . . . . 1 . . . STAY 1 | . . . . . . . . 1 . . . Ally Attacks 9 | . . 9 . . . . . . . . . Total Damage 146 | . . 146 . . . . . . . . . Kills 2 | . . 2 . . . . . . . . . Allies Corrupted . | . . . . . . . . . . . . Allies Melted . | . . . . . . . . . . . . Intel | -11 -10 -10 -9 -9 -9 -8 -8 -7 -7 -7 -7 ------- Run | Scr Mat Min Mat Min Exi Min Mat Fac Low Low Dat Robot Analysis Total 116 | . . . 1 . . . . . . . 115 Derelict Logs Recovered 8 | . . 2 . 3 . . . . 1 2 . Drone Launches . | . . . . . . . . . . . . Drone Recoveries . | . . . . . . . . . . . . Exploration | -11 -10 -10 -9 -9 -9 -8 -8 -7 -7 -7 -7 ------------- Run | Scr Mat Min Mat Min Exi Min Mat Fac Low Low Dat Turns Passed 4597 | 37 376 578 231 269 193 253 776 737 511 446 190 Spaces Moved 4329 | 37 276 401 258 254 283 273 550 746 734 391 126 Core 19 | 15 . . . . . . . . . . 4 Treads 1 | 1 . . . . . . . . . . . Legs . | . . . . . . . . . . . . Wheels 705 | 21 276 401 . 7 . . . . . . . Hover 3604 | . . . 258 247 283 273 550 746 734 391 122 Flight . | . . . . . . . . . . . . Fastest Speed 46 | 50 95 125 48 52 65 76 55 46 58 58 50 Average Speed 73 | 70 124 125 67 88 65 76 59 55 58 63 90 Slowest Speed 240 | 160 125 125 112 240 65 76 76 121 58 66 150 Overloaded Moves . | . . . . . . . . . . . . Propulsion Burnouts . | . . . . . . . . . . . . Robots Hopped . | . . . . . . . . . . . . Cave-ins Triggered . | . . . . . . . . . . . . Exploration Rate (%) 55 | 3 39 92 34 68 70 60 49 17 90 59 82 Regions Visited 11 Branch Regions 7 Pre-discovered Areas 28 | . . 1 . 1 1 . . . . . 25 Known Exits Taken 4 | . 1 . 1 . . . 1 1 . . . Unknown Exits Taken 7 | 1 . 1 . 1 1 1 . . 1 1 . Scrap Searched 10 | . . 1 . 2 . 1 . . 5 1 . Spaces Dug 40 | . . . 5 . . . 13 22 . . . Terrain Destroyed 192 | . 26 31 5 13 . 12 31 53 . 21 . Melee 21 | . . . 5 . . . 13 3 . . . Projectile 2 | . . . . . . . . 2 . . . AOE 169 | . 26 31 . 13 . 12 18 48 . 21 . Terrain Rammed . | . . . . . . . . . . . . Walls Destroyed . | . . . . . . . . . . . . Machines Disabled . | . . . . . . . . . . . . Actions | -11 -10 -10 -9 -9 -9 -8 -8 -7 -7 -7 -7 --------- Run | Scr Mat Min Mat Min Exi Min Mat Fac Low Low Dat Total 5491 | 45 298 456 297 287 288 317 955 983 818 584 163 Wait 857 | . 1 27 9 7 . 41 368 135 84 179 6 Move 4319 | 36 275 400 257 253 282 272 549 746 733 390 126 Hop . | . . . . . . . . . . . . Pick Up 45 | 5 9 4 5 5 1 1 6 8 . . 1 Fast Attach 18 | 4 1 . 2 4 . . 3 3 . 1 . Attach 25 | . 3 . 6 3 . . 3 4 1 2 3 Detach 14 | . 1 . 2 1 . . . 4 . 4 2 Swap 21 | . 1 3 1 1 1 1 . 13 . . . Drop 33 | . . 1 5 6 1 1 4 9 . 2 4 Fire 71 | . 4 21 . 2 . 1 2 35 . 6 . Melee 75 | . 3 . 10 5 3 . 20 13 . . 21 Ram . | . . . . . . . . . . . . Kick . | . . . . . . . . . . . . Crush . | . . . . . . . . . . . . Escape Stasis 13 | . . . . . . . . 13 . . . Rewire . | . . . . . . . . . . . . Trap . | . . . . . . . . . . . . Miscellaneous . | . . . . . . . . . . . . Route ------- -11/Scrapyard -10/Materials (discovered 3 exits: *Mat / *Min x2) -10/Mines (discovered 2 exits: *Mat x2) -9/Materials (discovered 2 exits: *Min x2) -9/Mines (discovered 3 exits: *Mat x2 / *Exi) -9/Exiles -8/Mines (discovered 2 exits: *Mat x2) -8/Materials -7/Factory (discovered 3 exits: *Sto / *Low x2) -7/Lower Caves -7/Lower Caves -7/Data Miner (discovered 1 exit: [*Pro]) History --------- Turn | Location | Event 6 | -11/Scrapyard | Discovered new exit (range 15) 38 | -11/Scrapyard | Entered Materials 196 | -10/Materials | Destroyed 8 combat bots 201 | -10/Materials | Identified exit to Mines 201 | -10/Materials | Discovered new exit (range 16) 308 | -10/Materials | Build established: Mutant 414 | -10/Materials | Entered Mines 531 | -10/Mines | Learned Materials terminal intel 889 | -10/Mines | Discovered new exit (range 8) 976 | -10/Mines | Discovered new exit (range 5) 992 | -10/Mines | Entered Materials 992 | -9/Materials | Accompanied by 1 ally 992 | -9/Materials | Evolved 2 slots: Propulsion x2 993 | -9/Materials | Loaded intel: 12 terminal locations 1013 | -9/Materials | Discovered new exit (range 7) 1054 | -9/Materials | Identified exit to Mines 1223 | -9/Materials | Entered Mines 1269 | -9/Mines | Assembled infested the area 1308 | -9/Mines | Met 8R-AWN 1340 | -9/Mines | Lost 3 parts (3n) 1420 | -9/Mines | Learned 2 Materials zone layouts 1424 | -9/Mines | Discovered new exit (range 15) 1436 | -9/Mines | Discovered new exit (range 10) 1476 | -9/Mines | Learned location of Storage (-7) 1489 | -9/Mines | Discovered new exit (range 5) 1492 | -9/Mines | Entered Exiles 1508 | -9/Exiles | Welcomed by 8R-AWN 1520 | -9/Exiles | Met EX-HEX 1537 | -9/Exiles | Met EX-BIN 1545 | -9/Exiles | Aligned with FarCom system 1545 | -9/Exiles | Given EX-Vault access code 1560 | -9/Exiles | Opened EX-Vault 1566 | -9/Exiles | Found Superbattery 1579 | -9/Exiles | Warned to stay clear of 0b10 Research branches 1637 | -9/Exiles | Met EX-DEC 1657 | -9/Exiles | Learned location of Zion (-6) 1678 | -9/Exiles | Discovered new exit (range 14) 1685 | -9/Exiles | Left Exiles lab with Superbattery 1685 | -9/Exiles | Entered Mines 1830 | -8/Mines | Discovered new exit (range 15) 1858 | -8/Mines | Discovered new exit (range 9) 1938 | -8/Mines | Entered Materials 1938 | -8/Materials | Evolved 2 slots: Utility x2 1939 | -8/Materials | Identified exit to Factory 2243 | -8/Materials | Build established: Scavenger-Scout 2714 | -8/Materials | Entered Factory 2714 | -7/Factory | Evolved 2 slots: Propulsion x1, Utility x1 2715 | -7/Factory | Identified exit to Storage 2845 | -7/Factory | Identified exit to Lower Caves 3056 | -7/Factory | Fabricated O-24 Administrator? 3451 | -7/Factory | Entered Lower Caves 3516 | -7/Lower Caves | Spotted B-75 Beast 3547 | -7/Lower Caves | Learned Factory interactive machine intel 3607 | -7/Lower Caves | Encountered a Warlord checkpoint 3952 | -7/Lower Caves | Discovered new exit (range 20) 3962 | -7/Lower Caves | Entered another Lower Caves area 3963 | -7/Lower Caves | Encountered a Warlord checkpoint 4273 | -7/Lower Caves | Learned 8 Factory zone layouts 4391 | -7/Lower Caves | Discovered new exit (range 10) 4401 | -7/Lower Caves | Learned Factory emergency access door positions 4408 | -7/Lower Caves | Entered Data Miner 4408 | -7/Data Miner | Discovered new exit (range 6) 4418 | -7/Data Miner | Met Data Miner 4440 | -7/Data Miner | Learned location of Section 7 (-2) 4440 | -7/Data Miner | Acquired the access code to Warlord's prototype stash 4446 | -7/Data Miner | Received God Mode back door access code from Data Miner 4474 | -7/Data Miner | Interfaced with the Data Conduit 4591 | -7/Data Miner | Core integrity fell below 50% 4595 | -7/Data Miner | Core integrity fell below 20% 4598 | -7/Data Miner | Destroyed by Enhanced Grunt with Neutron Cannon Last Messages --------------- 04474_ Interfacing with system... Downloaded 115 analysis records. Downloaded 708 prototype IDs. Downloaded central machine database. Downloaded 24 destinations. Downloaded encryption format records. Connection remotely terminated. 04510_ System corrupted: Energy discharge (-28). 04541_ CM>KYSUC0UO